Cogmind - Beta 15 @@@ ROGUE MODE // 2025.08.21 @ 14:38:54 Player: Yasuna Result: Destroyed by G-47 Trooper with Particle Gun Performance ------------- Evolutions (0) 0 Regions Visited (1) 200 Robots Destroyed (20) 100 Value Destroyed (386) 386 Prototype IDs (0) 0 Alien Tech Used (0) 0 Bonus (0) 0 TOTAL SCORE: 686 Bonus ------- None Cogmind --------- Core Integrity 0/250 Matter 300/300 Energy 160/160 System Corruption 0% Temperature Cool (31) Movement Rolling (95) Ox1 Location -10/Materials Parts ------- > --- POWER (1) -------- Light Nuclear Core > --- PROPULSION (2) --- Wheel Wheel > --- UTILITY (2) ------ Large Storage Unit Sensor Array > --- WEAPON (2) ------- Small Laser > --- INVENTORY (15) --- Ion Engine Heat Sink Propulsion Shielding Beam Cannon Peak State ------------ > --- POWER ------------ Light Nuclear Core > --- PROPULSION ------- Wheel Wheel > --- UTILITY ---------- Large Storage Unit Sensor Array > --- WEAPON ----------- Small Laser > --- INVENTORY -------- Ion Engine Heat Sink Propulsion Shielding Beam Cannon [Rating: 8] Favorites ----------- Power Ion Engine Engine Ion Engine Power Core Light Nuclear Core Propulsion Wheel Wheel Wheel Utility Sensor Array Device Sensor Array Storage Large Storage Unit Weapon Small Laser Energy Gun Small Laser Ballistic Gun Light Assault Rifle Special Melee Weapon Datajack Build | -11 -10 ------- Run | Yrd Mat Slots Evolved . | . . Power . | . . Propulsion . | . . Utility . | . . Weapon . | . . Parts Attached 17 | 5 12 Power 4 | 1 3 Engine 3 | 1 2 Core 1 | . 1 Reactor . | . . Propulsion 4 | 2 2 Treads . | . . Leg . | . . Wheel 4 | 2 2 Hover . | . . Flight . | . . Utility 3 | . 3 Device 1 | . 1 Storage 2 | . 2 Processor . | . . Hackware . | . . Protection . | . . Artifact . | . . Weapon 6 | 2 4 Energy Gun 4 | 1 3 Energy Cannon . | . . Ballistic Gun 1 | 1 . Ballistic Cannon . | . . Launcher . | . . Special Weapon . | . . Impact Weapon . | . . Slashing Weapon . | . . Piercing Weapon . | . . Special Melee Weapon 1 | . 1 Unidentified Prototypes . | . . Parts Lost 6 | . 6 Power . | . . Propulsion 2 | . 2 Utility . | . . Weapon 4 | . 4 Highest Loss Streak 3 | . 3 To Critical Strikes . | . . Average Backups 3 | . 3 Power . | . . Propulsion . | . . Utility 1 | . 1 Weapon 1 | . 1 Tool/Special . | . . Unused Backups 4 | . 4 Power . | . . Propulsion 1 | . 1 Utility 2 | . 2 Weapon 1 | . 1 Tool/Special . | . . Average Slot Usage (%) 78 | . 78 Engine 12 | . 12 Core 1 | . 1 Wheel 19 | . 19 Device 10 | . 10 Storage 11 | . 11 Energy Gun 16 | . 16 Ballistic Gun 4 | . 4 Special Melee Weapon 1 | . 1 Peak Build Rating 8 | 5 8 Average Rating 5 | 3 5 On Entrance 2 | . 5 Naked Turns . | . . Heaviest Build 29 | 6 29 Greatest Support 20 | 20 20 Greatest Overweight (x) 9 | . 9 Average Overweight (x) . | . . Largest Inventory Capacity 15 | 5 15 Average Capacity 11 | 5 12 Most Carried 8 | 2 8 Average Carried 3 | . 3 Final Capacity 15 | 5 15 Final Carried 4 | 1 4 Class Distribution -------------------- 89% | Mutant 10% | Scavenger-Mutant Dominant Class ---------------- Mutant | -10/Materials Resources | -11 -10 ----------- Run | Yrd Mat Matter Collected 400 | 252 148 Remotely . | . . Salvage Created 635 | 16 619 Parts 42 | . 42 Haulers Intercepted . | . . Recyclers Shooed 1 | . 1 Parts Field Recycled . | . . Retrieved Matter . | . . Parts Self-Destructed . | . . Prevented . | . . Kills | -11 -10 ------- Run | Yrd Mat Combat Hostiles Destroyed 12 | . 12 Guns 9 | . 9 AOE 3 | . 3 Classes Destroyed 6 | 1 5 Worker 4 | 1 3 Builder 1 | . 1 Recycler 2 | . 2 Watcher 1 | . 1 Swarmer 3 | . 3 Grunt 9 | . 9 Best Kill Streak 4 | 1 4 Combat Bots Only 3 | . 3 Max Kills in Single Turn 2 | 1 2 Gunslinging . | . . Exploded 2 | . 2 Melee . | . . Uniques/NPCs Destroyed . | . . Combat | -11 -10 -------- Run | Yrd Mat Hostile Shots Fired 94 | . 94 Missed 28 | . 28 Hits 66 | . 66 Projectile 66 | . 66 Damage Taken 775 | . 775 Core 262 | . 262 Absorbed by Shields . | . . Core Remaining (%) 100 | 100 . Volleys Fired 84 | 2 82 Largest 2 | 2 2 Hottest 80 | 60 80 Shots Fired 115 | 4 111 Gun 115 | 4 111 Cannon . | . . Launcher . | . . Special . | . . Kinetic 20 | 2 18 Thermal 64 | . 64 Explosive . | . . Electromagnetic 31 | 2 29 Robot Hit Streak 11 | 3 11 Robot Miss Streak 5 | 1 5 Penetration Max . | . . Secondary Targets . | . . Shots Hit Robots 66 | 3 63 Core Hits 34 | 2 32 Critical Kills . | . . Critical Parts Destroyed . | . . Critical Strikes . | . . Melee Attacks . | . . Impact . | . . Slashing . | . . Piercing . | . . Sneak Attacks . | . . Combat Hostiles . | . . Follow-up Attacks . | . . Damage Inflicted 898 | 31 867 Guns 757 | 31 726 Cannons . | . . Explosions 141 | . 141 Melee . | . . Ramming . | . . Kinetic 124 | 18 106 Thermal 537 | . 537 Explosive . | . . Electromagnetic 237 | 13 224 Impact . | . . Slashing . | . . Piercing . | . . Highest Corruption . | . . Average Corruption . | . . Corruption Purged . | . . Corruption Blocked . | . . Overload Shots . | . . Overflow Damage . | . . Projectiles . | . . Explosions . | . . Melee . | . . Knockbacks . | . . Impact . | . . Kinetic . | . . Secondary . | . . Self-Inflicted Damage 23 | . 23 Shots 1 | . 1 Rammed . | . . Targets Rammed . | . . Kicked . | . . Crushed . | . . Highest Temperature 164 | 20 164 Average Temperature 58 | 15 59 Received Heat Transfer 306 | . 306 Siege Activations . | . . Martial Activations . | . . Shielding Activations . | . . Robots Disrupted . | . . Combat Hostiles . | . . Robots Corrupted . | . . Combat Hostiles . | . . Parts Fried 1 | . 1 Impact Corruptions . | . . Robots Melted . | . . Combat Hostiles . | . . Parts Melted . | . . Heat Transferred 1100 | . 1100 Parts Sabotaged . | . . Parts Stolen . | . . Parts Stripped . | . . Power Chain Reactions 2 | . 2 Alert | -11 -10 ------- Run | Yrd Mat Maximum Alert Level . | . . Low Security (%) 100 | 100 100 Level 1 . | . . Level 2 . | . . Level 3 . | . . Level 4 . | . . Level 5 . | . . High Security . | . . Max Security . | . . Peak Influence 106 | 5 106 Initial . | . . Average 50 | 1 57 Influence Increases 378 | 5 373 Destroy 0b10 Robot/C 240 | . 240 Destroy 0b10 Robot/NC 40 | 5 35 Destroy Leader 42 | . 42 Successful Hack 20 | . 20 Destroy Structure 6 | . 6 Lose Combat Pursuer 30 | . 30 Influence Decreases 287 | 5 282 Time Decay 237 | 5 232 Lost Part 50 | . 50 Squads Dispatched 2 | . 2 Investigation 2 | . 2 Extermination . | . . Reinforcement . | . . Assault . | . . Garrison . | . . Intercept . | . . Searches Triggered . | . . Construction Impeded . | . . Haulers Reinforced . | . . Active Scanning Responses . | . . Cargo Convoy Interrupts . | . . Stealth | -11 -10 --------- Run | Yrd Mat Distress Signals 2 | . 2 Communications Jammed . | . . Distress Signals . | . . Times Spotted 26 | . 26 Peak Tracking Total 5 | . 5 Tactical Retreats 2 | . 2 Traps | -11 -10 ------- Run | Yrd Mat Traps Triggered 1 | . 1 Indirectly . | . . Trap Hack Attempts . | . . Triggered . | . . Disarmed . | . . Reprogrammed . | . . Reused . | . . Traps Extracted . | . . Installed . | . . Triggered . | . . Machines | -11 -10 ---------- Run | Yrd Mat Machines Disabled . | . . Max in Single Turn . | . . Machines Repaired . | . . Machines Dismantled . | . . Machines Sabotaged . | . . Overloaded Fab Kills . | . . Hacking | -11 -10 --------- Run | Yrd Mat Machines Accessed 4 | . 4 Terminals 3 | . 3 Fabricators . | . . Repair Stations . | . . Recycling Units 1 | . 1 Scanalyzers . | . . Garrison Access . | . . Total Hacks 24 | . 24 Successful 13 | . 13 Failed 11 | . 11 Catastrophic . | . . Database Lockouts . | . . Manual . | . . Terminals 15 | . 15 Fabricators . | . . Repair Stations . | . . Recycling Units 9 | . 9 Scanalyzers . | . . Garrison Access . | . . Terminal Hacks 5 | . 5 Record 3 | . 3 Scanalyzer Index 1 | . 1 Zone Layout 1 | . 1 Fabricator Hacks . | . . Repair Station Hacks . | . . Recycling Unit Hacks 8 | . 8 Recycle Component 3 | . 3 Process 1 | . 1 Report Inventory 3 | . 3 Retrieve Components 1 | . 1 Scanalyzer . | . . Garrison Access Hacks . | . . Unauthorized Hacks . | . . Terminals . | . . Fabricators . | . . Repair Stations . | . . Recycling Units . | . . Scanalyzers . | . . Garrison Access . | . . Data Cores Recovered . | . . Used . | . . Hacking Detections 4 | . 4 Full Trace Events 4 | . 4 Feedback Events . | . . Feedback Blocked . | . . Robot Schematics Acquired . | . . Robots Built . | . . Authchips . | . . Time . | . . Total Robot Build Rating . | . . Part Schematics Acquired . | . . Parts Built . | . . Authchips . | . . Time . | . . Total Part Build Rating . | . . Parts Repaired . | . . Time . | . . Parts Recycled 3 | . 3 Recycled Matter 250 | . 250 Retrieved Matter . | . . Retrieved Components 3 | . 3 Parts Scanalyzed . | . . Part Schematics Acquired . | . . Parts Damaged . | . . Bothacking | -11 -10 ------------ Run | Yrd Mat Used RIF Installer . | . . Robots Hacked . | . . Non-combat . | . . Combat . | . . Robot Hacks Applied . | . . Relay Couplers Released . | . . Fabnet Peak Effective % . | . . Robots Rewired . | . . Allies Hacked . | . . Hacks Repelled . | . . Allies | -11 -10 -------- Run | Yrd Mat Total Allies . | . . Largest Group . | . . Highest-Rated Group . | . . Highest-Rated Ally . | . . Total Orders . | . . Ally Attacks . | . . Total Damage . | . . Kills . | . . Allies Corrupted . | . . Allies Melted . | . . Intel | -11 -10 ------- Run | Yrd Mat Active Infowar (turns) 434 | . 434 Sensors 434 | . 434 Robot Analysis Total . | . . Derelict Logs Recovered . | . . Drone Launches . | . . Drone Recoveries . | . . Exploration | -11 -10 ------------- Run | Yrd Mat Turns Passed 650 | 76 574 Spaces Moved 409 | 81 328 Core 34 | 18 16 Treads . | . . Legs . | . . Wheels 375 | 63 312 Hover . | . . Flight . | . . Fastest Speed 50 | 50 80 Average Speed 100 | 73 107 Slowest Speed 500 | 80 500 Overloaded Moves . | . . Propulsion Burnouts . | . . Robots Hopped . | . . Potential Cave-ins . | . . Cave-ins Triggered . | . . Exploration Rate (%) 21 | 6 37 Regions Visited 1 Branch Regions . Pre-discovered Areas . | . . Known Exits Taken . | . . Unknown Exits Taken 1 | 1 . Scrap Searched . | . . Spaces Dug . | . . Terrain Destroyed 4 | . 4 Melee . | . . Projectile . | . . AOE 4 | . 4 Terrain Rammed . | . . Walls Destroyed . | . . Machines Disabled . | . . Actions | -11 -10 --------- Run | Yrd Mat Total 534 | 93 441 Wait . | . . Move 408 | 80 328 Hop . | . . Pick Up 21 | 6 15 Fast Attach . | . . Attach 12 | 5 7 Detach . | . . Swap 7 | . 7 Drop 2 | . 2 Fire 84 | 2 82 Melee . | . . Ram . | . . Kick . | . . Crush . | . . Escape Stasis . | . . Rewire . | . . Trap . | . . Miscellaneous . | . . Route ------- -11/Scrapyard -10/Materials History --------- Turn | Location | Event 2 | -11/Scrapyard | Met Revision 17 69 | -11/Scrapyard | Discovered new exit (range 8) 77 | -11/Scrapyard | Entered Materials 330 | -10/Materials | Build established: Mutant 397 | -10/Materials | Core integrity fell below 50% 418 | -10/Materials | Lost 3 parts (2n1w) 519 | -10/Materials | Core integrity fell below 20% 651 | -10/Materials | Destroyed by G-47 Trooper with Particle Gun Last Messages --------------- 00520_ Door malfunctions. 00529_ G-47 Trooper destroyed. 00532_ U-05 Engineer repairs door. 00538_ Acquired 10 matter. 00546_ EM Pulse Gun destroyed. 00553_ G-34 Mercenary destroyed. [Achievement: Crack Shot] 00559_ R-06 Scavenger destroyed. 00579_ Acquired Wheel. 00584_ Acquired Lgt. Nuclear Core. 00593_ R-06 Scavenger collects Corrupted Particle Gun. 00595_ R-06 Scavenger collects Corrupted Aluminum Leg. 00599_ R-06 Scavenger collects Aluminum Leg. 00602_ Acquired 30 matter. 00603_ R-06 Scavenger collects Sml. Matter Pod. 00622_ Connecting with Terminal... 00636_ G-34 Mercenary suffers critical hit (Burn). 00639_ K-01 Serf cleans the Terminal. 00643_ G-34 Mercenary destroyed. 00646_ K-01 Serf collects debris. Map ----- +----------------------------------------------------+ | ?????????????????????????????????????????????????? | | ?????????????????????????????????????????????????? | | ?????????????????????????????????????????????????? | | ?????????????????????????????????????????????????? | | ?????????????????????????????????????????????????? | | ?????????????????????????????????????????????????? | | ?????????????????????????????????????????????????? | | ??????????????????????????????????###????????????? | | ??????????????????????????????????? ???????????? | | ??????????????????????????????????? "???????????? | | ??????????????????????????????????? ""??????????? | | ???????????????????????????????????? ""??????????? | | ???????????????????????######??????? ???????? | | ???????????????????##+## ########+######### | | ?????????????????? + # | | ???????????????????? ? # # % | | ?????????????????????? """ ! # # | | ???????????????????????# """ % % # +% | | ????????????????????????# """ t # !! # | | ????????????????????????# """ !% + !! # | | ???????????????????????## ! %[######## | | ???????????????????????+ %!*%#??????# | | ???????????????????????## """ u %?##??????# | | ????????????????????????# """ #???????# | | ????????????????????????# """ ######### | | ????????????????????????#@ """ #### ## | | ????????????????????????#[= #??#%## % | | ??????????# #######gg u #??# ## | | ??????????# ? g k "#??#+###"######## | | ??????????# T#??# #### | | ??????????# k "#??# # | | ??????????? #??# """ # | | ??????????? #??# """ # | | ???????????? #############+### #??# """ # | | ?????????????????????????????# #??# """ # | | ?????????????????????????????# #??# """ "Y" # "" | | ?????????????????????????????+ #??# """ # "" | | ?????????????????????????????# #??########### "" | | ?????????????????????????????# #????????????# | | ?????????????????????????????# #????????????# " | | ?????????????????????????????# #????############ | | ?????????????????????????????# #????# + | | ?????????????????????????????# #????# % ### | | ?????????????????????????????# ###### % #?? | | ?????????????????????????????# ^^ # """ #?? | | ?????????????????????????????# ^ / """"" #?? | | ?????????????????????????????# ^""" # """"" #?? | | ?????????????????????????????#^ """ # """"" #?? | | ??????????????????????######## """ # """ #?? | | ??????????????????????# # """ # #?? | +----------------------------------------------------+ Best States ------------- Heat Dissipation 25 Energy Generation 14 Energy Capacity 250 Matter Stores 300 Matter Capacity 300 Sight Range 16 Robot Scan Range 14 Terrain Scan Density 10 Evasion (%) 50 Item Schematics ----------------- None Robot Schematics ------------------ None Fabricated ------------ Nothing Repaired ---------- Nothing Alien Tech Used ----------------- None Achievements -------------- Crack Shot Challenges ------------ None Game ------ Seed TechMediumTerrabomb Manual? 0 Play Time 00:17:37 Cumulative 1.4 hours Start 2025.08.21 @ 13:53:45 End 2025.08.21 @ 14:38:54 Sessions 1 Manual Loads 0 Difficulty Rogue Special Mode None Game No. 2 Rogue 2 Adventurer 0 Explorer 0 Win Type - Total 0 Types 0/0/0/0/0/0/0/0/0/0 Lore% 0 Gallery% 3 Achievement% 4 Wizard Run 0 Options --------- Layout 1 ASCII 0 Keyboard 0 Movement Mouse Keybinds 0 Fullscreen 0 Font 28/SmallcapsLarge Map View 89x39 Zoom Use 0% Tactical HUD 1 Map Filters NONE Filters NONE Steam 1 RUN: ba46c696-9060-42b1-bd71-92d6e23650be